[Event "FIDE World School-ch O-13 2025"]
[Site "Vrnjacka Banja"]
[Date "2025.03.22"]
[Round "4.4"]
[White "Petroff, Vlad"]
[Black "Lee, Tsuen Jin Aiesec"]
[Result "1/2-1/2"]
[Annotator "TA"]
[ECO "D02"]
[WhiteElo "2030"]
[BlackElo "1693"]
[PlyCount "108"]
[EventDate "2025.03.19"]
[EventType "swiss"]
[EventCountry "SRB"]
[SourceTitle "playchess.com"]
[Source "ChessBase"]
[SourceQuality "1"]
[TimeControl "5400+30"]

{[%evp 10,108,22,22,27,23,27,29,35,25,33,19,27,21,54,0,36,20,15,0,6,0,0,0,4,0,0,0,0,1,9,-37,-15,-23,8,8,8,-27,49,8,30,9,11,4,11,11,11,11,20,18,50,49,52,38,45,39,52,44,50,0,11,0,32,0,0,0,0,0,0,-15,-10,-18,-11,-56,-60,-68,-66,-62,-16,-14,-14,-15,0,-86,0,-33,0,0,0,0,0,0,0,0,0,0,0,0,0,0,0]} 1. d4 {[%emt 0:00:07]} Nf6 {[%emt 0:00:04]} 2. Nf3 {[%emt 0:00:16]} g6 {[%emt 0:00:37]} 3. Nbd2 {[%emt 0:00:31]} d5 {[%emt 0:00:08]} 4. e3 {[%emt 0:00:17]} Bg7 {[%emt 0:00:07]} 5. b4 {[%emt 0:00:56][%cal Bb2b4,Bb4b5][%mdl 32]} O-O {[%emt 0:00:57]} 6. c4 {[%emt 0:03:22]} a5 {[%emt 0:01:37] D02: 1 d4 d5 2 Nf3 sidelines, including 2...Nf6 3 g3 and 2...Nf6 3 Bf4.} 7. b5 {[%emt 0:01:18]} c6 {[%emt 0:01:33]} 8. a4 {[%emt 0:02:35]} Ne4 {[%emt 0:00:19] White has an edge.} 9. Bb2 {[%emt 0:03:41]} (9. cxd5 Nxd2 10. Qxd2 cxd5 11. Bb2) 9... Bg4 {[%emt 0:01:43]} 10. Be2 {[%emt 0:01:29]} Nd7 {[%emt 0:03:10]} (10... Nxd2 11. Nxd2 Bxe2 12. Qxe2 Nd7) 11. O-O {[%emt 0:05:57]} cxb5 $146 {[%emt 0:32:48]} (11... Nxd2 12. Nxd2 Bxe2 13. Qxe2 cxb5 14. axb5 e5 15. c5 Re8 16. c6 bxc6 17. bxc6 Nb8 {½-½ Hernandez Jimenez,J (2007)-Toro Castaneda,M (2032) COL-ch U18 final 2021 (6)}) 12. cxb5 {[%emt 0:00:34]} (12. axb5 $14 Nxd2 13. Nxd2 Bxe2 14. Qxe2) 12... Bxf3 {[%emt 0:19:29]} 13. Nxf3 {[%emt 0:02:44]} Nb6 {[%emt 0:01:13]} 14. Qb3 {[%emt 0:03:13]} Qd7 {[%emt 0:01:56]} 15. Ba3 {[%emt 0:06:30]} Rac8 {[%emt 0:04:47]} 16. Rac1 {[%emt 0:06:31] Dodges Rc3} Qe6 {[%emt 0:07:28]} 17. Rfd1 {[%emt 0:07:04]} Rfd8 {[%emt 0:05:30]} 18. h3 {[%emt 0:05:55]} h5 {[%emt 0:02:04]} 19. Bd3 {[%emt 0:01:51]} Nc4 {[%emt 0:14:30]} 20. Bxc4 {[%emt 0:03:04]} (20. Rc2 $11) 20... dxc4 $15 {[%emt 0:00:00]} 21. Qa2 {[%emt 0:01:40]} Bf6 {[%emt 0:00:00]} 22. Nd2 {[%emt 0:08:16]} Nxd2 {[%emt 0:00:00]} 23. Rxd2 {[%emt 0:01:13]} Kg7 {[%emt 0:00:00]} (23... c3 $11 24. Qxe6 fxe6) 24. Rdc2 {[%emt 0:01:06][%cal Rc2c4]} Rc7 {[%emt 0:00:00]} 25. Qb2 {[%emt 0:12:21]} (25. b6 $5 Qxb6 26. Rxc4 $14) 25... b6 {[%emt 0:00:00]} 26. Rc3 {[%emt 0:03:56]} Rdc8 {[%emt 0:00:00]} 27. Qd2 {[%emt 0:00:25]} Kh7 {[%emt 0:00:00]} 28. R3c2 {[%emt 0:00:47]} Kg7 {[%emt 0:00:00]} 29. Bb2 {[%emt 0:01:02]} Qd6 {[%emt 0:00:00]} 30. e4 {[%emt 0:04:02] [#]} Qd8 {[%emt 0:02:40]} 31. Qe3 {[%emt 0:06:36] and e5 should not be overlooked} e6 {[%emt 0:00:25]} 32. Bc3 {[%emt 0:02:00]} Kh7 {[%emt 0:00:24]} 33. Rd1 {[%emt 0:01:45]} Rd7 {[%emt 0:00:35]} 34. Rcd2 {[%emt 0:01:36]} Bg5 {[%emt 0:00:59]} 35. f4 {[%emt 0:00:02]} Be7 {[%emt 0:00:07]} 36. Kh1 {[%emt 0:00:44]} Bb4 {[%emt 0:00:35]} 37. d5 {[%emt 0:00:59]} Bxc3 {[%emt 0:00:32]} 38. Qxc3 {[%emt 0:00:02]} exd5 {[%emt 0:00:23]} 39. exd5 {[%emt 0:00:50]} Rd6 {[%emt 0:00:16]} 40. Kh2 {[%emt 0:02:18]} (40. Rd4 {simplifies} Qf6 41. Rc1 Rc5 42. Rxc4 Qxc3 43. R4xc3 Rcxd5 44. Rc6) 40... Rc5 {[%emt 0:00:58]} 41. Qe5 {[%emt 0:00:39]} c3 {[%emt 0:00:28]} 42. Rc2 {[%emt 0:00:14]} Rdxd5 {[%emt 0:00:55]} 43. Rxd5 {[%emt 0:00:39]} Qxd5 {[%emt 0:00:05]} (43... Rxd5 $15 {is more appropriate.} 44. Qxc3 Rd4) 44. Qxd5 $11 {[%emt 0:00:09]} Rxd5 {[%emt 0:00:03]} 45. Rxc3 $15 {[%emt 0:00:19][%mdl 4096] Endgame KR-KR} Rd4 {[%emt 0:00:02][%csl LRa4,LRf4]} 46. Rc6 {[%emt 0:00:34]} (46. Kg3 $11 {keeps the balance.}) 46... Rxa4 {[%emt 0:00:11]} (46... Rxf4 $17 47. Rxb6 Rxa4) 47. f5 {[%emt 0:00:51]} Rf4 {[%emt 0:01:21]} 48. fxg6+ {[%emt 0:00:13] The position is equal.} fxg6 {[%emt 0:00:03]} 49. Rxb6 {[%emt 0:00:06][%cal Bc6b6,Bb6b7,Bb7a7,Ba7a4][%mdl 32]} Rb4 {[%emt 0:00:05]} 50. Rb7+ {[%emt 0:00:44]} Kh6 {[%emt 0:00:09]} 51. b6 {[%emt 0:00:36]} a4 {[%emt 0:00:03]} 52. Ra7 {[%emt 0:00:17]} Rxb6 {[%emt 0:00:03]} 53. Rxa4 {[%emt 0:00:06]} Rc6 {[%emt 0:00:10]} 54. h4 {[%emt 0:00:19]} Rb6 {[%emt 0:00:05] Weighted Error Value: White=0.14 (very precise) /Black=0.12 (very precise)   Mistake:       	White=3     	Black=3      Inaccurate:     	White=6     	Black=5      OK:         	White=18    	Black=13     Best:        	White=4     	Black=3} 1/2-1/2

[Event "FIDE World School-ch O-13 2025"]
[Site "Vrnjacka Banja"]
[Date "2025.03.22"]
[Round "4.5"]
[White "Kudrin, Ivan"]
[Black "Eshwar Veerappan Aiyappan"]
[Result "1/2-1/2"]
[Annotator "NA RC"]
[ECO "B31"]
[WhiteElo "1977"]
[BlackElo "1765"]
[PlyCount "63"]
[EventDate "2025.03.19"]
[EventType "swiss"]
[EventCountry "SRB"]
[SourceTitle "playchess.com"]
[Source "ChessBase"]
[SourceQuality "1"]
[TimeControl "5400+30"]

1. e4 {[%emt 0:01:12]} c5 {[%emt 0:00:26]} 2. Nf3 {[%emt 0:00:16]} Nc6 {[%emt 0:00:14]} 3. Bb5 {[%emt 0:00:42]} g6 {[%emt 0:00:45]} 4. Bxc6 {[%emt 0:00:38]} dxc6 {[%emt 0:00:12]} 5. d3 {[%emt 0:00:03]} Bg7 {[%emt 0:00:12]} 6. h3 {[%emt 0:00:05]} e5 {[%emt 0:00:34]} 7. Be3 {[%emt 0:00:11]} Qe7 {[%emt 0:01:28]} 8. a4 {[%emt 0:04:07]} a5 {[%emt 0:01:02]} 9. O-O {[%emt 0:02:24]} Nf6 {[%emt 0:01:50]} 10. Nbd2 {[%emt 0:05:08]} O-O {[%emt 0:10:16]} 11. Nc4 {[%emt 0:04:19]} Nd7 {[%emt 0:00:28]} 12. Qd2 {[%emt 0:06:10]} b6 {[%emt 0:04:18]} 13. Bh6 {[%emt 0:02:31]} Ba6 {[%emt 0:03:45]} 14. Bxg7 {[%emt 0:01:25]} Kxg7 {[%emt 0:00:35]} 15. Qc3 {[%emt 0:03:41]} Bxc4 {[%emt 0:04:46]} 16. Qxc4 {[%emt 0:00:20]} Rae8 {[%emt 0:04:45]} 17. Nd2 {[%emt 0:03:40]} f5 {[%emt 0:18:19]} 18. exf5 {[%emt 0:02:46]} gxf5 {[%emt 0:00:38]} 19. Rae1 {[%emt 0:07:40]} Kh8 {[%emt 0:07:08]} 20. f4 {[%emt 0:22:11]} Qg7 {[%emt 0:09:43]} 21. Re2 {[%emt 0:07:39]} exf4 {[%emt 0:09:30]} 22. Rxe8 {[%emt 0:00:13]} Rxe8 {[%emt 0:00:02]} 23. Qxf4 {[%emt 0:00:34]} Qxb2 {[%emt 0:02:27]} 24. Qxf5 {[%emt 0:02:06]} Qd4+ {[%emt 0:00:57]} 25. Kh1 {[%emt 0:00:08]} Rf8 {[%emt 0:00:44]} 26. Qe6 {[%emt 0:00:07]} Rxf1+ {[%emt 0:01:54]} 27. Nxf1 {[%emt 0:00:05]} Qf6 {[%emt 0:03:27]} 28. Qxd7 {[%emt 0:02:22]} Qxf1+ {[%emt 0:00:06]} 29. Kh2 {[%emt 0:00:15]} Qf4+ {[%emt 0:05:54]} 30. Kh1 {[%emt 0:00:07]} Qf1+ {[%emt 0:01:48]} 31. Kh2 {[%emt 0:00:08]} Qf4+ {[%emt 0:00:39]} 32. Kh1 {[%emt 0:00:07]} 1/2-1/2

[Event "FIDE World School-ch O-13 2025"]
[Site "Vrnjacka Banja"]
[Date "2025.03.22"]
[Round "4.6"]
[White "You, Eden"]
[Black "Sukhanov, Nikita"]
[Result "1/2-1/2"]
[Annotator "NA RC"]
[ECO "C47"]
[WhiteElo "2083"]
[BlackElo "1764"]
[PlyCount "72"]
[EventDate "2025.03.19"]
[EventType "swiss"]
[EventCountry "SRB"]
[SourceTitle "playchess.com"]
[Source "ChessBase"]
[SourceQuality "1"]
[TimeControl "5400+30"]

1. e4 {[%emt 0:00:04]} e5 {[%emt 0:01:20]} 2. Nf3 {[%emt 0:00:08]} Nc6 {[%emt 0:00:44]} 3. Nc3 {[%emt 0:00:12]} Nf6 {[%emt 0:00:21]} 4. d4 {[%emt 0:00:25]} exd4 {[%emt 0:04:03]} 5. Nxd4 {[%emt 0:00:03]} Bb4 {[%emt 0:00:25]} 6. Nxc6 {[%emt 0:00:09]} bxc6 {[%emt 0:00:04]} 7. Bd3 {[%emt 0:00:11]} O-O {[%emt 0:00:30]} 8. O-O {[%emt 0:00:27]} d5 {[%emt 0:01:08]} 9. exd5 {[%emt 0:00:14]} cxd5 {[%emt 0:00:11]} 10. h3 {[%emt 0:00:06]} h6 {[%emt 0:00:56]} 11. Qf3 {[%emt 0:01:00]} c5 {[%emt 0:01:53]} 12. Rd1 {[%emt 0:04:06]} Be6 {[%emt 0:07:28]} 13. Bf4 {[%emt 0:02:03]} Qe7 {[%emt 0:05:25]} 14. Nb5 {[%emt 0:09:55]} c4 {[%emt 0:09:31]} 15. Bf1 {[%emt 0:03:31]} Rac8 {[%emt 0:05:59]} 16. c3 {[%emt 0:05:06]} Bc5 {[%emt 0:00:45]} 17. Be3 {[%emt 0:07:12]} Rb8 {[%emt 0:06:00]} 18. Nd4 {[%emt 0:07:47]} Rxb2 {[%emt 0:01:55]} 19. Re1 {[%emt 0:10:51]} Re8 {[%emt 0:03:13]} 20. Bc1 {[%emt 0:08:08]} Rb6 {[%emt 0:02:07]} 21. Nf5 {[%emt 0:03:33]} Qd8 {[%emt 0:04:16]} 22. Ng3 {[%emt 0:02:01]} d4 {[%emt 0:01:13]} 23. cxd4 {[%emt 0:02:27]} Bxd4 {[%emt 0:00:38]} 24. Rd1 {[%emt 0:02:49]} Rd6 {[%emt 0:02:25]} 25. Bf4 {[%emt 0:01:41]} Rd7 {[%emt 0:01:58]} 26. Rac1 {[%emt 0:02:38]} Qb6 {[%emt 0:04:42]} 27. Be3 {[%emt 0:09:44]} Bxe3 {[%emt 0:00:53]} 28. Qxe3 {[%emt 0:00:27]} Qxe3 {[%emt 0:00:13]} 29. fxe3 {[%emt 0:00:02]} Rxd1 {[%emt 0:00:08]} 30. Rxd1 {[%emt 0:00:13]} c3 {[%emt 0:02:36]} 31. Rc1 {[%emt 0:01:07]} Rc8 {[%emt 0:00:35]} 32. Ne2 {[%emt 0:03:12]} Ne4 {[%emt 0:01:36]} 33. Rc2 {[%emt 0:01:37]} Bd7 {[%emt 0:03:30]} 34. Nd4 {[%emt 0:03:47]} Ba4 {[%emt 0:01:32]} 35. Rc1 {[%emt 0:01:50]} Bc6 {[%emt 0:03:12]} 36. Ba6 {[%emt 0:01:46]} Rc7 1/2-1/2

[Event "FIDE World School-ch O-13 2025"]
[Site "Vrnjacka Banja"]
[Date "2025.03.22"]
[Round "4.7"]
[White "Nanayakkara, Sanuk"]
[Black "Sakotic, Nikola"]
[Result "1/2-1/2"]
[Annotator "NA RC"]
[ECO "A49"]
[WhiteElo "1813"]
[BlackElo "2039"]
[PlyCount "36"]
[EventDate "2025.03.19"]
[EventType "swiss"]
[EventCountry "SRB"]
[SourceTitle "playchess.com"]
[Source "ChessBase"]
[SourceQuality "1"]
[TimeControl "5400+30"]

1. Nf3 {[%emt 0:00:03]} Nf6 {[%emt 0:02:12]} 2. g3 {[%emt 0:00:53]} g6 {[%emt 0:00:05]} 3. Bg2 {[%emt 0:00:47]} Bg7 {[%emt 0:00:25]} 4. O-O {[%emt 0:08:02]} c5 {[%emt 0:00:03]} 5. d4 {[%emt 0:05:09]} cxd4 {[%emt 0:00:38]} 6. Nxd4 {[%emt 0:00:06]} O-O {[%emt 0:00:06]} 7. e4 {[%emt 0:01:21]} Nc6 {[%emt 0:07:27]} 8. Be3 {[%emt 0:07:46]} d5 {[%emt 0:06:07]} 9. exd5 {[%emt 0:05:23]} Nxd5 {[%emt 0:00:57]} 10. Nxc6 {[%emt 0:01:23]} bxc6 {[%emt 0:00:04]} 11. Bd4 {[%emt 0:00:14]} Nb4 {[%emt 0:18:56]} 12. Bxg7 {[%emt 0:09:10]} Kxg7 {[%emt 0:04:13]} 13. Nd2 {[%emt 0:20:38]} Bf5 {[%emt 0:07:54]} 14. Be4 {[%emt 0:17:04]} Bxe4 {[%emt 0:16:20]} 15. Nxe4 {[%emt 0:02:07]} Qd5 {[%emt 0:04:39]} 16. Qe2 {[%emt 0:02:29]} Qb5 {[%emt 0:13:22]} 17. c4 {[%emt 0:04:32]} Qe5 {[%emt 0:00:41]} 18. a3 {[%emt 0:01:13]} Na6 {[%emt 0:00:07]} 1/2-1/2

[Event "FIDE World School-ch O-13 2025"]
[Site "Vrnjacka Banja"]
[Date "2025.03.22"]
[Round "4.8"]
[White "Simiyu Jadon"]
[Black "Ilcic, Aleksa"]
[Result "0-1"]
[Annotator "TA"]
[ECO "B31"]
[WhiteElo "1937"]
[BlackElo "1822"]
[PlyCount "72"]
[EventDate "2025.03.19"]
[EventType "swiss"]
[EventCountry "SRB"]
[SourceTitle "playchess.com"]
[Source "ChessBase"]
[SourceQuality "1"]
[TimeControl "5400+30"]

{[%evp 12,72,39,28,20,10,12,16,20,2,10,11,16,0,0,2,45,32,21,0,10,0,0,0,18,15,13,0,0,0,0,-80,-74,-553,-579,-546,-545,-562,-555,-729,-721,-687,-687,-921,-337,-337,-343,-341,-345,-340,-338,-492,-422,-2563,-414,-375,-397,-710,-567,-845,-699,-1922,-1879]} 1. e4 {[%emt 0:00:07]} c5 {[%emt 0:00:17]} 2. Nf3 {[%emt 0:00:06]} Nc6 {[%emt 0:00:06]} 3. Bb5 {[%emt 0:00:06]} g6 {[%emt 0:00:08]} 4. Bxc6 {[%emt 0:00:06]} dxc6 {[%emt 0:00:12]} 5. d3 {[%emt 0:00:08]} Bg7 {[%emt 0:00:11]} 6. O-O {[%emt 0:00:11]} e5 {[%emt 0:00:57]} 7. h3 {[%emt 0:00:07]} Qc7 {[%emt 0:01:46] B31: Sicilian: 2...Nc6 3 Bb5 g6.} 8. Qd2 $146 {[%emt 0:00:33]} (8. Be3 b6 9. a3 a5 10. Nbd2 Nf6 11. b4 cxb4 12. axb4 a4 13. c4 b5 14. cxb5 cxb5 {0-1 Vidit,S (2716)-Carlsen,M (2839) Chess.com Speed Chess blitz 2023 (1.6)}) 8... b6 {[%emt 0:03:59]} 9. a4 {[%emt 0:00:28]} a5 {[%emt 0:03:52] The position is equal.} 10. Qc3 {[%emt 0:00:10]} h6 {[%emt 0:01:22]} 11. Nbd2 {[%emt 0:01:36]} Be6 {[%emt 0:01:30]} 12. Re1 {[%emt 0:05:23]} Rd8 {[%emt 0:08:31]} 13. Nc4 {[%emt 0:02:38]} Bxc4 {[%emt 0:00:24]} 14. dxc4 {[%emt 0:01:01]} Ne7 {[%emt 0:00:29][%cal Bg8e7,Be7c8,Bc8d6][%mdl 32]} 15. Be3 {[%emt 0:02:04]} O-O {[%emt 0:00:48]} 16. Rad1 {[%emt 0:04:13]} Nc8 {[%emt 0:09:58]} 17. Bd2 {[%emt 0:28:06]} Rfe8 {[%emt 0:17:21]} 18. Qe3 {[%emt 0:12:12]} Nd6 {[%emt 0:24:37]} 19. b3 {[%emt 0:08:58]} f5 {[%emt 0:04:06]} 20. exf5 {[%emt 0:06:13]} e4 {[%emt 0:01:19]} 21. Nh2 {[%emt 0:05:12]} (21. Nh4 g5 22. Bc3 gxh4 $17) (21. fxg6 $1 $11 exf3 22. Qxf3 Rxe1+ 23. Rxe1) 21... Nxf5 $17 {[%emt 0:00:25]} ({Don't play} 21... gxf5 $6 22. Qg3 Re6 23. Bf4 $14) 22. Qf4 {[%emt 0:00:13][%mdl 8192] This move loses the game for White.} (22. Qe2 $17) 22... Be5 $19 {[%emt 0:00:17]} 23. Qg4 {[%emt 0:00:24]} Bxh2+ {[%emt 0:01:58]} 24. Kh1 {[%emt 0:00:08]} Kh7 {[%emt 0:03:21]} 25. g3 {[%emt 0:01:21] [#]} Bxg3 {[%emt 0:05:31]} 26. fxg3 {[%emt 0:00:14]} e3 {[%emt 0:00:46]} 27. Bc3 {[%emt 0:01:35] Against Re4} Qxg3 $2 {[%emt 0:00:06]} (27... Rxd1 28. Rxd1 Re4 (28... Qxg3 29. Rd7+ Kg8 30. Rg7+ Kf8 31. Qxf5+ gxf5 32. Rxg3 $18) (28... Nxg3+ $2 29. Kg1 $19)) 28. Rxd8 {[%emt 0:05:02]} Rxd8 {[%emt 0:00:17]} 29. Qxg3 {[%emt 0:01:33]} Nxg3+ {[%emt 0:00:06][%mdl 4096] Endgame KRB-KRN. Black is two pawns up.} 30. Kg2 {[%emt 0:00:10]} Nf5 {[%emt 0:00:07][%cal Od8d2]} 31. Re2 {[%emt 0:00:51]} (31. Be5 $142) 31... Rd1 {[%emt 0:00:28]} 32. Be5 {[%emt 0:01:58]} (32. Re1 $142 Rxe1 33. Bxe1) 32... Rd2 {[%emt 0:01:15]} (32... Nh4+ $142 33. Kg3 g5 (33... Nf5+ $2 34. Kf4 $19)) 33. Kf1 {[%emt 0:00:14]} Rd7 {[%emt 0:01:55]} ({Much less strong is} 33... Rd1+ 34. Re1 Rd7 (34... Rd2 $2 35. Bc7 $19) 35. Bb2) 34. Kg2 $2 {[%emt 0:00:34]} (34. Re1) 34... g5 {[%emt 0:01:00] Black is clearly winning.} 35. Bh2 {[%emt 0:00:46]} Kg6 {[%emt 0:00:19] [#] and ...Nh4+ should not be overlooked} 36. Bg1 {[%emt 0:00:13]} Rd2 {[%emt 0:00:28] Weighted Error Value: White=1.12/Black=0.68  Loses game:     	White=1     	---        Mistake:       	White=4     	Black=1      Inaccurate:     	White=3     	Black=1      OK:         	White=6     	Black=11     Best:        	White=3     	Black=3} 0-1